Cogmind - Beta 10.2 *** ADVENTURER MODE // 2021.07.20 @ 00:18:08 Player: darlorth Result: Destroyed by G-34 Mercenary with Small Laser Performance ------------- Evolutions (0) 0 Regions Visited (1) 200 Robots Destroyed (12) 60 Value Destroyed (226) 226 Prototype IDs (0) 0 Alien Tech Used (0) 0 Bonus (0) 0 TOTAL SCORE: 486 Bonus ------- None Cogmind --------- Core Integrity 0/250 Matter 189/300 Energy 250/250 System Corruption 0% Temperature Cool (6) Movement Walking (120) Location -10/Materials Parts ------- > --- POWER (1) -------- Ion Engine > --- PROPULSION (2) --- Aluminum Leg Aluminum Leg > --- UTILITY (2) ------ Signal Interpreter Utility Shielding > --- WEAPON (2) ------- Heavy Hammer Heavy Hammer > --- INVENTORY (4) ---- Light Treads Medium Laser Heavy Hammer Peak State ------------ > --- POWER ------------ Ion Engine > --- PROPULSION ------- Wheel Compact Wheel > --- UTILITY ---------- Small Storage Unit Utility Shielding > --- WEAPON ----------- Heavy Hammer Heavy Hammer > --- INVENTORY -------- Light Ion Engine Light Treads Medium Laser Grenade Launcher Heavy Hammer Heavy Hammer [Rating: 9] Favorites ----------- Power Ion Engine Engine Ion Engine Propulsion Aluminum Leg Leg Aluminum Leg Wheel Compact Wheel Flight Unit Flight Unit Utility Utility Shielding Storage Large Storage Unit Processor Signal Interpreter Protection Utility Shielding Weapon Heavy Hammer Energy Gun Medium Laser Ballistic Gun Light Assault Rifle Launcher Grenade Launcher Impact Weapon Heavy Hammer Build | -11 -10 ------- Run | Scr Mat Slots Evolved . | . . Power . | . . Propulsion . | . . Utility . | . . Weapon . | . . Parts Attached 20 | 5 15 Power 3 | . 3 Engine 3 | . 3 Core . | . . Reactor . | . . Propulsion 6 | 2 4 Treads . | . . Leg 2 | . 2 Wheel 3 | 2 1 Hover . | . . Flight 1 | . 1 Utility 4 | 1 3 Device . | . . Storage 2 | 1 1 Processor 1 | . 1 Hackware . | . . Protection 1 | . 1 Artifact . | . . Weapon 7 | 2 5 Energy Gun 1 | 1 . Energy Cannon . | . . Ballistic Gun 1 | 1 . Ballistic Cannon . | . . Launcher 1 | . 1 Special Weapon . | . . Impact Weapon 4 | . 4 Slashing Weapon . | . . Piercing Weapon . | . . Special Melee Weapon . | . . Unidentified Prototypes . | . . Parts Lost 5 | . 5 Power 1 | . 1 Propulsion 2 | . 2 Utility . | . . Weapon 2 | . 2 Highest Loss Streak 3 | . 3 Average Slot Usage (%) 67 | . 67 Engine 8 | . 8 Leg 7 | . 7 Wheel 6 | . 6 Flight 1 | . 1 Storage 5 | . 5 Protection 12 | . 12 Impact Weapon 22 | . 22 Naked Turns . | . . Heaviest Build 28 | 7 28 Greatest Support 26 | 26 26 Greatest Overweight (x) 8 | . 8 Average Overweight (x) . | . . Largest Inventory Capacity 10 | 6 10 Average Capacity 5 | 4 5 Most Carried 7 | 5 7 Average Carried 4 | 2 4 Final Capacity 6 | 6 4 Final Carried 5 | 5 3 Class Distribution -------------------- 100% | Mutant Dominant Class ---------------- Mutant | -10/Materials Resources | -11 -10 ----------- Run | Scr Mat Matter Collected 314 | 181 133 Remotely . | . . Salvage Created 291 | . 291 Parts 14 | . 14 Haulers Intercepted 1 | . 1 Recyclers Shooed . | . . Parts Field Recycled . | . . Retrieved Matter . | . . Parts Self-Destructed . | . . Prevented . | . . Kills | -11 -10 ------- Run | Scr Mat Combat Hostiles Destroyed 8 | . 8 Melee 4 | . 4 AOE 3 | . 3 Classes Destroyed 5 | . 5 Worker 1 | . 1 Builder 2 | . 2 Hauler 1 | . 1 Swarmer 3 | . 3 Grunt 5 | . 5 Best Kill Streak 4 | . 4 Combat Bots Only 3 | . 3 Max Kills in Single Turn 1 | . 1 Gunslinging . | . . Exploded 1 | . 1 Melee 1 | . 1 Uniques/NPCs Destroyed . | . . Combat | -11 -10 -------- Run | Scr Mat Damage Taken 533 | . 533 Core 254 | . 254 Absorbed by Shields . | . . Core Remaining (%) 100 | 100 . Volleys Fired 5 | . 5 Largest 1 | . 1 Hottest 30 | . 30 Shots Fired 5 | . 5 Gun . | . . Cannon . | . . Launcher 5 | . 5 Special . | . . Kinetic . | . . Thermal . | . . Explosive 5 | . 5 Electromagnetic . | . . Robot Hit Streak 1 | . 1 Robot Miss Streak 1 | . 1 Penetration Max . | . . Secondary Targets . | . . Shots Hit Robots 25 | . 25 Core Hits 13 | . 13 Critical Hits . | . . Critical Kills . | . . Critical Parts Destroyed . | . . Melee Attacks 27 | . 27 Impact 27 | . 27 Slashing . | . . Piercing . | . . Sneak Attacks 4 | . 4 Combat Hostiles . | . . Follow-up Attacks 2 | . 2 Damage Inflicted 1128 | . 1128 Guns . | . . Cannons . | . . Explosions 298 | . 298 Melee 830 | . 830 Ramming . | . . Kinetic . | . . Thermal . | . . Explosive 298 | . 298 Electromagnetic . | . . Impact 830 | . 830 Slashing . | . . Piercing . | . . Highest Corruption . | . . Average Corruption . | . . Corruption Purged . | . . Overload Shots . | . . Overflow Damage 124 | . 124 Projectiles . | . . Explosions 18 | . 18 Melee 106 | . 106 Knockbacks 4 | . 4 Impact 4 | . 4 Kinetic . | . . Secondary . | . . Self-Inflicted Damage 70 | . 70 Shots 4 | . 4 Rammed . | . . Targets Rammed . | . . Kicked . | . . Crushed . | . . Highest Temperature 10 | . 10 Average Temperature 6 | . 6 Received Heat Transfer 303 | . 303 Siege Activations . | . . Robots Corrupted . | . . Combat Hostiles . | . . Parts Fried . | . . Impact Corruptions 6 | . 6 Robots Melted . | . . Combat Hostiles . | . . Parts Melted . | . . Heat Transferred . | . . Parts Sabotaged . | . . Parts Stolen . | . . Parts Stripped . | . . Power Chain Reactions . | . . Missiles Intercepted . | . . Alert | -11 -10 ------- Run | Scr Mat Peak Influence 150 | . 150 Initial . | . . Average 64 | . 72 Maximum Alert Level . | . . Low Security (%) 100 | 100 100 Level 1 . | . . Level 2 . | . . Level 3 . | . . Level 4 . | . . Level 5 . | . . High Security . | . . Max Security . | . . Squads Dispatched 1 | . 1 Investigation 1 | . 1 Extermination . | . . Reinforcement . | . . Assault . | . . Garrison . | . . Intercept . | . . Construction Impeded . | . . Haulers Reinforced . | . . Stealth | -11 -10 --------- Run | Scr Mat Distress Signals . | . . Communications Jammed . | . . Distress Signals . | . . Times Spotted 12 | . 12 Peak Tracking Total 5 | . 5 Tactical Retreats 4 | . 4 Traps | -11 -10 ------- Run | Scr Mat Traps Triggered 1 | . 1 Indirectly . | . . Trap Hack Attempts . | . . Triggered . | . . Disarmed . | . . Reprogrammed . | . . Reused . | . . Traps Extracted . | . . Installed . | . . Triggered 1 | . 1 Machines | -11 -10 ---------- Run | Scr Mat Machines Disabled . | . . Max in Single Turn . | . . Machines Sabotaged . | . . Garrisons Compromised . | . . Overloaded Fab Kills . | . . Fab Network Shutdowns . | . . Hacking | -11 -10 --------- Run | Scr Mat Machines Accessed . | . . Terminals . | . . Fabricators . | . . Repair Stations . | . . Recycling Units . | . . Scanalyzers . | . . Garrison Access . | . . Total Hacks . | . . Successful . | . . Failed . | . . Catastrophic . | . . Database Lockouts . | . . Manual . | . . Terminals . | . . Fabricators . | . . Repair Stations . | . . Recycling Units . | . . Scanalyzers . | . . Garrison Access . | . . Terminal Hacks . | . . Fabricator Hacks . | . . Repair Station Hacks . | . . Recycling Unit Hacks . | . . Scanalyzer . | . . Garrison Access Hacks . | . . Unauthorized Hacks . | . . Terminals . | . . Fabricators . | . . Repair Stations . | . . Recycling Units . | . . Scanalyzers . | . . Garrison Access . | . . Data Cores Recovered . | . . Used . | . . Hacking Detections . | . . Full Trace Events . | . . Feedback Events . | . . Feedback Blocked . | . . Robot Schematics Acquired . | . . Robots Built . | . . Matter . | . . Time . | . . Total Robot Build Rating . | . . Part Schematics Acquired . | . . Parts Built . | . . Matter . | . . Time . | . . Total Part Build Rating . | . . Parts Repaired . | . . Time . | . . Parts Recycled . | . . Recycled Matter . | . . Retrieved Matter . | . . Retrieved Components . | . . Parts Scanalyzed . | . . Part Schematics Acquired . | . . Parts Damaged . | . . Bothacking | -11 -10 ------------ Run | Scr Mat Used RIF Installer . | . . Robots Hacked . | . . Non-combat . | . . Combat . | . . Robot Hacks Applied . | . . Relay Couplers Released . | . . Robots Rewired . | . . Allies Hacked . | . . Hacks Repelled . | . . Allies | -11 -10 -------- Run | Scr Mat Total Allies . | . . Largest Group . | . . Highest-Rated Group . | . . Highest-Rated Ally . | . . Total Orders . | . . Ally Attacks . | . . Total Damage . | . . Kills . | . . Allies Corrupted . | . . Allies Melted . | . . Intel | -11 -10 ------- Run | Scr Mat Robot Analysis Total . | . . Derelict Logs Recovered . | . . Drone Launches . | . . Drone Recoveries . | . . Exploration | -11 -10 ------------- Run | Scr Mat Turns Passed 495 | 55 440 Spaces Moved 300 | 45 255 Core 32 | 2 30 Treads . | . . Legs 86 | . 86 Wheels 142 | 43 99 Hover . | . . Flight 40 | . 40 Fastest Speed 50 | 50 90 Average Speed 118 | 88 124 Slowest Speed 450 | 100 450 Overloaded Moves . | . . Propulsion Burnouts . | . . Robots Hopped . | . . Cave-ins Triggered . | . . Exploration Rate (%) 17 | 3 32 Regions Visited 1 Branch Regions . Pre-discovered Areas . | . . Known Exits Taken . | . . Unknown Exits Taken 1 | 1 . Scrap Searched . | . . Spaces Dug . | . . Terrain Destroyed 44 | . 44 Melee . | . . Projectile . | . . AOE 44 | . 44 Terrain Rammed . | . . Walls Destroyed . | . . Machines Disabled . | . . Actions | -11 -10 --------- Run | Scr Mat Total 384 | 59 325 Wait 16 | . 16 Move 299 | 44 255 Hop . | . . Pick Up 16 | 10 6 Fast Attach 6 | . 6 Attach 10 | 5 5 Detach . | . . Swap 4 | . 4 Drop 5 | . 5 Fire 5 | . 5 Melee 23 | . 23 Ram . | . . Kick . | . . Crush . | . . Escape Stasis . | . . Rewire . | . . Trap . | . . Miscellaneous . | . . Route ------- -11/Scrapyard -10/Materials History --------- Turn | Location | Event 9 | -11/Scrapyard | Discovered new exit (range 16) 56 | -11/Scrapyard | Entered Materials 241 | -10/Materials | Core integrity fell below 50% 249 | -10/Materials | Lost 3 parts (1p1n1w) 312 | -10/Materials | Build established: Mutant 343 | -10/Materials | Core integrity fell below 20% 496 | -10/Materials | Destroyed by G-34 Mercenary with Small Laser Last Messages --------------- 00436_ U-05 Engineer lays Concrete. 00437_ T-07 Excavator is excavating. 00437_ U-05 Engineer lays Concrete. 00441_ G-34 Mercenary system corruption misinterpreted. 00441_ G-34 Mercenary triggered Alarm Trap. 00441_ An alarm sounds. 00441_ ALERT: Alarm triggered, dispatching investigation squad. 00456_ U-05 Engineer lays Concrete. 00466_ Sneak attack on A-02 Transporter. 00466_ Destroyed Ion Engine. 00466_ A-02 Transporter system corrupted by crushing effect. 00467_ A-02 Transporter system terminally corrupted. 00469_ K-01 Serf collects debris. 00471_ Acquired Signal Interpreter. 00473_ K-01 Serf collects debris. 00485_ G-34 Mercenary knocked back. 00488_ G-34 Mercenary destroyed. 00491_ Hvy. Hammer follow-up attack on G-34 Mercenary. 00491_ G-34 Mercenary destroyed. 00494_ K-01 Serf collects debris. Map ----- +----------------------------------------------------+ | ??????????????????????????????????????????? | | ??????????????????????????????????????????? | | ??????????????????????????????????????????? | | ??????????????????????????????????????????? | | ??????????????????????????????????????????? | | ??????????????????????????????????????????? | | ??????????????????????????????????????????? | | ??????????????????????????????????????????? | | ??????????????????????????????????????????? | | ??????????????????????????????????????????? | | ??????????????????????????????????????????? | | ??????????????????????????????????????????? | | ??????????????????????????????????????????? | | ????????????????########??????????????????? | | ????????????????# #??????????????????? | | ???????????#????# #??????????????????? | | ???????????# ???# #??????????????????? | | ???????????# ??# ##########+###?????? | | ???????????# ??# + ??? | | ???????????# ?# # ??? | | ???????????# ##+###### ??? | | ???????????+ =*%! ??? | | ???????????# *! ############# ???? | | ???????????+ kk #????????????????? | | ???????????######g#### #????????#???????? | | ??????????????# %%@ # ###### #???????? | | ??????????????#""" # # #???????? | | ??????????????#""" # #???????? | | ??????????????#""" # # #???????? | | ??????????????# # ##########???????? | | ??????????????# # #????????????????? | | ??????????????######## #????????????????? | | ????????############## ##########???????? | | ????????# # # [ ] !#???????? | | ????????# """ """ # # #???????? | | ????????# ! """ """ # # ![[#???????? | | ???###??# """ """ + # ![[#???????? | | ???# ??# """ """ # " ![ #???????? | | ?### ?# # # #???????? | | # ?#+############ # "T" #???????? | | # # #### ### # """ #???????? | | # # ###^^^+ #???????? | | # ! ^ ########+#???????? | | # # ### ##???????#???????? | | ??######### ## #### ###???????????????? | | ????????### # # ###+###???????????????? | | ????????# %|###### ##???????????????? | | ????????## = !/ "" ##???????????????? | | ??####### = # "Y #???????????????? | | ??#[! "" ##???????????????? | +----------------------------------------------------+ Best States ------------- Heat Dissipation 25 Energy Generation 10 Energy Capacity 250 Matter Stores 224 Matter Capacity 300 Sight Range 16 Terrain Scan Density 10 Resistance: KI 20 Resistance: TH 20 Resistance: EX 20 Resistance: EM 20 Resistance: I 20 Resistance: S 20 Resistance: P 20 Utility Shielding 33 Evasion (%) 42 Offensive Hacking 10 Item Schematics ----------------- None Robot Schematics ------------------ None Fabricated ------------ Nothing Alien Tech Used ----------------- None Achievements -------------- None Challenges ------------ None Game ------ Seed AlphaVortexAccelerator Manual? 0 Play Time 00:06:13 Cumulative 167.0 hours Start 2021.07.20 @ 00:12:50 End 2021.07.20 @ 00:18:08 Sessions 1 Manual Loads 0 Difficulty Adventurer Special Mode None Game No. 195 Rogue 106 Adventurer 43 Explorer 46 Win Type - Total 6 Types 5/0/1/0/0/0/0/0/0 Lore% 31 Gallery% 65 Achievement% 52 Wizard Run 0 Options --------- ASCII 0 Keyboard 0 Movement Mouse Keybinds 0 Fullscreen 1 Font 12/Smallcaps Map View 83x54 Tactical HUD 1 Map Filters NONE Filters NONE Steam 1 RUN: c62b2302-00fb-4859-9b3a-db73c589681a